[Event "Budapest Spring Festival 2019"]
[Site "Budapest"]
[Date "2019.04.11"]
[Round "3.33"]
[White "Lizak, Peter"]
[Black "Vegh, Endre"]
[Result "1-0"]
[ECO "A40"]
[WhiteElo "2472"]
[BlackElo "2240"]
[Annotator "ChessBase"]
[PlyCount "71"]
[EventDate "2019.04.09"]
[EventType "swiss"]
[EventCountry "HUN"]
[SourceTitle "playchess.com"]
[Source "ChessBase"]
[SourceQuality "1"]
[TimeControl "40/5400+30:1800+30"]

1. d4 {[%emt 0:00:03]} e6 {[%emt 0:00:25]} 2. e4 {[%emt 0:01:10]} c5 {[%emt 0:01:10]} 3. d5 {[%emt 0:00:21]} exd5 {[%emt 0:00:55]} 4. exd5 {[%emt 0:00:07]} d6 {[%emt 0:00:50]} 5. Nf3 {[%emt 0:01:26]} Nf6 {[%emt 0:00:55]} 6. Nc3 {[%emt 0:00:52]} Be7 {[%emt 0:00:54]} 7. h3 {[%emt 0:10:37]} O-O {[%emt 0:02:02]} 8. Be2 {[%emt 0:00:59]} Na6 {[%emt 0:04:55]} 9. O-O {[%emt 0:06:27]} Nc7 {[%emt 0:00:48]} 10. Bf4 {[%emt 0:02:58]} Rb8 {[%emt 0:02:01]} 11. a4 {[%emt 0:00:31]} a6 {[%emt 0:01:00]} 12. Rb1 {[%emt 0:09:57]} b5 {[%emt 0:06:46]} 13. axb5 {[%emt 0:00:17]} axb5 {[%emt 0:02:34]} 14. b4 {[%emt 0:00:16]} cxb4 {[%emt 0:02:58]} 15. Rxb4 {[%emt 0:01:10]} Bd7 {[%emt 0:00:30]} 16. Be3 {[%emt 0:25:32]} Qc8 {[%emt 0:00:38]} 17. Qd2 {[%emt 0:05:10]} Qb7 {[%emt 0:03:15]} 18. Rd1 {[%emt 0:02:15]} Na6 {[%emt 0:05:52]} 19. Rd4 {[%emt 0:01:25]} b4 {[%emt 0:21:02]} 20. Ne4 {[%emt 0:07:36]} Nc7 {[%emt 0:03:19]} 21. Bc4 {[%emt 0:04:58]} Rfc8 {[%emt 0:04:50]} 22. Bg5 {[%emt 0:03:32]} Nxe4 {[%emt 0:03:39]} 23. Rxe4 {[%emt 0:00:09]} Bf8 {[%emt 0:01:34]} 24. Rh4 {[%emt 0:01:54]} h6 {[%emt 0:03:20]} 25. Be3 {[%emt 0:02:18]} Ne8 {[%emt 0:05:04]} 26. Ra1 {[%emt 0:02:48]} Ra8 {[%emt 0:04:11]} 27. Rb1 {[%emt 0:00:08]} Rcb8 {[%emt 0:04:09]} 28. g4 {[%emt 0:05:50]} Qc8 {[%emt 0:03:38]} 29. g5 {[%emt 0:00:42]} hxg5 {[%emt 0:04:41]} 30. Nxg5 {[%emt 0:00:44]} Be7 {[%emt 0:02:06]} 31. Qe2 {[%emt 0:01:17]} Nf6 {[%emt 0:00:56]} 32. Bd4 {[%emt 0:00:31]} Qe8 {[%emt 0:01:50]} 33. Re1 {[%emt 0:01:31]} Bf8 {[%emt 0:01:16]} 34. Qd1 {[%emt 0:00:17]} Qc8 {[%emt 0:00:29]} 35. Bxf6 {[%emt 0:00:29]} gxf6 {[%emt 0:00:03]} 36. Qh5 {[%emt 0:00:16]} 1-0

[Event "Budapest Spring Festival 2019"]
[Site "Budapest"]
[Date "2019.04.11"]
[Round "3.34"]
[White "Pujari, Rucha"]
[Black "Henderson de La Fuente, Lance"]
[Result "0-1"]
[ECO "C01"]
[WhiteElo "2205"]
[BlackElo "2471"]
[Annotator "ChessBase"]
[PlyCount "88"]
[EventDate "2019.04.09"]
[EventType "swiss"]
[EventCountry "HUN"]
[SourceTitle "playchess.com"]
[Source "ChessBase"]
[SourceQuality "1"]
[TimeControl "40/5400+30:1800+30"]

1. d4 {[%emt 0:08:16]} e6 {[%emt 0:00:21]} 2. e4 {[%emt 0:01:22]} d5 {[%emt 0:00:28]} 3. exd5 {[%emt 0:00:27]} exd5 {[%emt 0:00:28]} 4. Bd3 {[%emt 0:00:10]} Nc6 {[%emt 0:01:59]} 5. c3 {[%emt 0:00:51]} Bd6 {[%emt 0:00:37]} 6. Qf3 {[%emt 0:00:50]} Nge7 {[%emt 0:02:42]} 7. Ne2 {[%emt 0:01:30]} Be6 {[%emt 0:04:17]} 8. Bf4 {[%emt 0:04:51]} Ng6 {[%emt 0:04:12]} 9. Nd2 {[%emt 0:05:49]} O-O {[%emt 0:10:28]} 10. Bxd6 {[%emt 0:05:34]} Qxd6 {[%emt 0:00:10]} 11. h4 {[%emt 0:01:11]} Nge7 {[%emt 0:01:50]} 12. h5 {[%emt 0:06:28]} h6 {[%emt 0:00:46]} 13. O-O-O {[%emt 0:05:54]} Rab8 {[%emt 0:09:03]} 14. Rhg1 {[%emt 0:11:29]} b5 {[%emt 0:11:50]} 15. g4 {[%emt 0:01:28]} b4 {[%emt 0:08:31]} 16. c4 {[%emt 0:03:51]} dxc4 {[%emt 0:02:42]} 17. Nxc4 {[%emt 0:00:26]} Qd5 {[%emt 0:06:01]} 18. Qxd5 {[%emt 0:05:47]} Nxd5 {[%emt 0:01:44]} 19. g5 {[%emt 0:03:56]} Kh8 {[%emt 0:00:20]} 20. Rg3 {[%emt 0:12:00]} Rbd8 {[%emt 0:01:27]} 21. b3 {[%emt 0:07:41]} hxg5 {[%emt 0:10:52]} 22. Rxg5 {[%emt 0:00:45]} Nf6 {[%emt 0:02:19]} 23. Bc2 {[%emt 0:02:05]} Bg4 {[%emt 0:02:21]} 24. h6 {[%emt 0:04:21]} g6 {[%emt 0:01:03]} 25. Rd2 {[%emt 0:04:03]} Bxe2 {[%emt 0:01:03]} 26. Rxe2 {[%emt 0:00:25]} Nxd4 {[%emt 0:00:17]} 27. Re3 {[%emt 0:00:10]} Nd5 {[%emt 0:01:15]} 28. Rd3 {[%emt 0:01:34]} c5 {[%emt 0:00:44]} 29. Kb2 {[%emt 0:00:39]} Kh7 {[%emt 0:04:06]} 30. Na5 {[%emt 0:00:33]} Nf4 {[%emt 0:03:14]} 31. Rd1 {[%emt 0:00:29]} Nfe6 {[%emt 0:00:40]} 32. Re5 {[%emt 0:00:12]} Nxc2 {[%emt 0:00:55]} 33. Rxd8 {[%emt 0:00:29]} Rxd8 {[%emt 0:00:04]} 34. Kxc2 {[%emt 0:00:09]} Kxh6 {[%emt 0:00:15]} 35. Kc1 {[%emt 0:01:10]} Kg7 {[%emt 0:00:43]} 36. Nc4 {[%emt 0:00:29]} Kf6 {[%emt 0:01:14]} 37. Re3 {[%emt 0:00:07]} Rd5 {[%emt 0:00:33]} 38. Nd2 {[%emt 0:00:25]} Re5 {[%emt 0:00:57]} 39. Rf3+ {[%emt 0:00:44]} Rf5 {[%emt 0:01:38]} 40. Rd3 {[%emt 0:00:00]} Ke7 {[%emt 0:00:00]} 41. Ne4 {[%emt 0:01:09]} Re5 {[%emt 0:02:43]} 42. Nd2 {[%emt 0:01:38]} Re1+ {[%emt 0:00:34]} 43. Kb2 {[%emt 0:00:11]} Re2 {[%emt 0:00:14]} 44. f3 {[%emt 0:00:19]} Nf4 0-1

[Event "Budapest Spring Festival 2019"]
[Site "Budapest"]
[Date "2019.04.11"]
[Round "3.35"]
[White "Karacsonyi, Gellert"]
[Black "Torma, Robert"]
[Result "1/2-1/2"]
[ECO "C03"]
[WhiteElo "2279"]
[BlackElo "2463"]
[Annotator "ChessBase"]
[PlyCount "73"]
[EventDate "2019.04.09"]
[EventType "swiss"]
[EventCountry "HUN"]
[SourceTitle "playchess.com"]
[Source "ChessBase"]
[SourceQuality "1"]
[TimeControl "40/5400+30:1800+30"]

1. e4 {[%emt 0:00:03]} e6 {[%emt 0:00:04]} 2. d4 {[%emt 0:00:12]} d5 {[%emt 0:00:03]} 3. Nd2 {[%emt 0:00:07]} h6 {[%emt 0:00:07]} 4. c3 {[%emt 0:00:19]} c5 {[%emt 0:01:15]} 5. exd5 {[%emt 0:01:12]} exd5 {[%emt 0:00:23]} 6. Ngf3 {[%emt 0:00:44]} Nf6 {[%emt 0:00:55]} 7. Bb5+ {[%emt 0:00:42]} Bd7 {[%emt 0:00:35]} 8. Qe2+ {[%emt 0:00:49]} Be7 {[%emt 0:00:19]} 9. O-O {[%emt 0:03:05]} O-O {[%emt 0:05:23]} 10. dxc5 {[%emt 0:05:34]} Bxc5 {[%emt 0:04:34]} 11. Nb3 {[%emt 0:05:35]} Bb6 {[%emt 0:11:21]} 12. Bxd7 {[%emt 0:08:25]} Qxd7 {[%emt 0:03:34]} 13. Bf4 {[%emt 0:12:50]} Nc6 {[%emt 0:01:17]} 14. h3 {[%emt 0:04:52]} Qf5 {[%emt 0:04:18]} 15. Bh2 {[%emt 0:04:45]} a6 {[%emt 0:10:26]} 16. Rad1 {[%emt 0:05:21]} Rfe8 {[%emt 0:09:32]} 17. Qd2 {[%emt 0:06:26]} Re4 {[%emt 0:01:08]} 18. Nbd4 {[%emt 0:10:57]} Nxd4 {[%emt 0:09:41]} 19. Nxd4 {[%emt 0:00:31]} Qd7 {[%emt 0:01:24]} 20. Rfe1 {[%emt 0:01:55]} Rae8 {[%emt 0:08:48]} 21. a3 {[%emt 0:16:04]} Qa4 {[%emt 0:09:16]} 22. Rxe4 {[%emt 0:08:19]} Rxe4 {[%emt 0:02:21]} 23. f3 {[%emt 0:00:50]} Bxd4+ {[%emt 0:05:32]} 24. cxd4 {[%emt 0:00:01]} Re8 {[%emt 0:00:18]} 25. Rc1 {[%emt 0:00:44]} Qb5 {[%emt 0:02:34]} 26. Kf2 {[%emt 0:00:52]} Nd7 {[%emt 0:02:27]} 27. Rc3 {[%emt 0:01:03]} Nf8 {[%emt 0:00:59]} 28. Rc5 {[%emt 0:00:58]} Qb3 {[%emt 0:00:24]} 29. Rc3 {[%emt 0:00:08]} Qb6 {[%emt 0:00:46]} 30. Bc7 {[%emt 0:00:34]} Qb5 {[%emt 0:00:30]} 31. Bf4 {[%emt 0:00:52]} Ne6 {[%emt 0:00:49]} 32. Be3 {[%emt 0:00:00]} Qd7 {[%emt 0:00:57]} 33. Kf1 {[%emt 0:01:06]} Qe7 {[%emt 0:01:55]} 34. Bf2 {[%emt 0:00:20]} Qf6 {[%emt 0:00:32]} 35. Re3 {[%emt 0:00:43]} Qf5 {[%emt 0:01:19]} 36. Re5 {[%emt 0:00:19]} Qb1+ {[%emt 0:00:48]} 37. Re1 {[%emt 0:00:02]} 1/2-1/2

[Event "Budapest Spring Festival 2019"]
[Site "Budapest"]
[Date "2019.04.11"]
[Round "3.36"]
[White "Godbole, Atharva"]
[Black "Kayonde, Andrew"]
[Result "0-1"]
[ECO "B14"]
[WhiteElo "2163"]
[BlackElo "2394"]
[Annotator "NA"]
[PlyCount "40"]
[EventDate "2019.04.09"]
[EventType "swiss"]
[EventCountry "HUN"]
[SourceTitle "playchess.com"]
[Source "ChessBase"]
[SourceQuality "1"]
[TimeControl "40/5400+30:1800+30"]

1. e4 {[%emt 0:00:05]} c6 {[%emt 0:00:11]} 2. d4 {[%emt 0:00:25]} d5 {[%emt 0:00:13]} 3. exd5 {[%emt 0:00:33]} cxd5 {[%emt 0:00:12]} 4. c4 {[%emt 0:00:04]} Nf6 {[%emt 0:00:13]} 5. Nc3 {[%emt 0:00:08]} g6 {[%emt 0:00:23]} 6. Qb3 {[%emt 0:01:49]} Bg7 {[%emt 0:00:19]} 7. cxd5 {[%emt 0:00:07]} O-O {[%emt 0:00:09]} 8. Be2 {[%emt 0:01:50]} Nbd7 {[%emt 0:00:22]} 9. Bf3 {[%emt 0:00:44]} Nb6 {[%emt 0:00:11]} 10. Nge2 {[%emt 0:00:55]} Bg4 {[%emt 0:00:14]} 11. Bxg4 {[%emt 0:00:51]} Nxg4 {[%emt 0:00:09]} 12. a4 {[%emt 0:05:16]} Nf6 {[%emt 0:01:07]} 13. d6 {[%emt 0:08:35]} Qxd6 {[%emt 0:00:55]} 14. Bf4 {[%emt 0:00:29]} Qd7 {[%emt 0:01:05]} 15. O-O {[%emt 0:01:09]} Nbd5 {[%emt 0:07:10]} 16. Be5 {[%emt 0:02:22]} Rfd8 {[%emt 0:00:57]} 17. Rfd1 {[%emt 0:01:05]} a5 {[%emt 0:05:51]} 18. h3 $15 {[%emt 0:11:16]} e6 {[%emt 0:08:26]} 19. Nb5 {[%emt 0:04:47]} Ne8 {[%emt 0:02:33]} 20. Ng3 {[%emt 0:09:18]} f6 {[%emt 0:01:10]} 0-1

[Event "Budapest Spring Festival 2019"]
[Site "Budapest"]
[Date "2019.04.11"]
[Round "3.37"]
[White "Szeberenyi, Adam"]
[Black "Losonczi, Marcell"]
[Result "1-0"]
[ECO "A49"]
[WhiteElo "2392"]
[BlackElo "2238"]
[Annotator "NA"]
[PlyCount "57"]
[EventDate "2019.04.09"]
[EventType "swiss"]
[EventCountry "HUN"]
[SourceTitle "playchess.com"]
[Source "ChessBase"]
[SourceQuality "1"]
[TimeControl "40/5400+30:1800+30"]

1. d4 {[%emt 0:00:03]} Nf6 {[%emt 0:00:06]} 2. Nf3 {[%emt 0:00:05]} g6 {[%emt 0:00:05]} 3. g3 {[%emt 0:00:35]} Bg7 {[%emt 0:00:07]} 4. Bg2 {[%emt 0:00:02]} d6 {[%emt 0:00:10]} 5. O-O {[%emt 0:00:07]} O-O $11 {[%emt 0:00:04]} 6. a4 {[%emt 0:00:47]} Na6 {[%emt 0:00:29]} 7. Nc3 {[%emt 0:02:02]} c6 {[%emt 0:12:05]} 8. e4 {[%emt 0:03:40]} Qc7 {[%emt 0:02:58]} 9. e5 {[%emt 0:01:37]} dxe5 {[%emt 0:05:51]} 10. Nxe5 {[%emt 0:07:35]} Rd8 {[%emt 0:05:40]} 11. Re1 {[%emt 0:10:22]} Be6 {[%emt 0:35:17]} 12. a5 {[%emt 0:05:30]} Nd7 {[%emt 0:04:21]} 13. Nf3 {[%emt 0:11:39]} Nf8 {[%emt 0:00:20]} 14. Bf4 {[%emt 0:01:18]} Qd7 {[%emt 0:03:31]} 15. Qe2 {[%emt 0:01:53]} Bg4 {[%emt 0:02:02]} 16. Be5 {[%emt 0:37:20]} Bxe5 {[%emt 0:03:29]} 17. dxe5 {[%emt 0:00:08]} Ne6 {[%emt 0:00:32]} 18. Qc4 {[%emt 0:02:06]} Nd4 {[%emt 0:08:09]} 19. Nxd4 {[%emt 0:01:03]} Qxd4 {[%emt 0:00:06]} 20. Qb3 {[%emt 0:03:06]} Qd7 {[%emt 0:06:35]} 21. Ne4 {[%emt 0:00:49]} Be6 {[%emt 0:01:35]} 22. Qe3 {[%emt 0:01:09]} Kg7 {[%emt 0:02:27]} 23. Ra4 {[%emt 0:01:17]} h6 {[%emt 0:00:59]} 24. b3 {[%emt 0:03:12]} Bd5 {[%emt 0:01:26]} 25. Nf6 {[%emt 0:01:27]} Qe6 {[%emt 0:00:59]} 26. Rh4 {[%emt 0:03:01]} g5 {[%emt 0:01:04]} 27. Bh3 {[%emt 0:00:03]} gxh4 {[%emt 0:01:19]} 28. Bxe6 {[%emt 0:00:06]} Bxe6 {[%emt 0:00:03]} 29. Nh5+ {[%emt 0:00:11]} 1-0

[Event "Budapest Spring Festival 2019"]
[Site "Budapest"]
[Date "2019.04.11"]
[Round "3.38"]
[White "Popovics, Adam"]
[Black "Taranenko, Evgueniy"]
[Result "1-0"]
[ECO "B00"]
[WhiteElo "2375"]
[BlackElo "2212"]
[Annotator "NA"]
[PlyCount "57"]
[EventDate "2019.04.09"]
[EventType "swiss"]
[EventCountry "HUN"]
[SourceTitle "playchess.com"]
[Source "ChessBase"]
[SourceQuality "1"]
[TimeControl "40/5400+30:1800+30"]

1. e4 {[%emt 0:00:03]} Nc6 {[%emt 0:04:02]} 2. d4 {[%emt 0:00:18]} d5 {[%emt 0:00:04]} 3. Nc3 {[%emt 0:00:10]} e5 {[%emt 0:01:14]} 4. exd5 {[%emt 0:07:58]} Nxd4 {[%emt 0:00:03]} 5. Nf3 {[%emt 0:01:30]} Bc5 {[%emt 0:01:21]} 6. Be3 {[%emt 0:01:42]} Bg4 {[%emt 0:01:18]} 7. Be2 {[%emt 0:17:31]} Bxf3 {[%emt 0:00:06]} 8. Bxf3 {[%emt 0:02:26]} Nf6 {[%emt 0:00:15]} 9. O-O {[%emt 0:11:35]} O-O {[%emt 0:00:24]} 10. Bg5 {[%emt 0:04:30]} Qd6 {[%emt 0:09:50]} 11. g3 {[%emt 0:06:00]} Nd7 {[%emt 0:10:31]} 12. Ne4 $11 {[%emt 0:03:54]} Qb6 {[%emt 0:05:48]} 13. Bg2 {[%emt 0:02:26]} h6 {[%emt 0:06:22]} 14. Bd2 {[%emt 0:08:00]} Be7 {[%emt 0:08:35]} 15. c3 {[%emt 0:04:38]} f5 {[%emt 0:10:30]} 16. cxd4 {[%emt 0:04:32]} fxe4 {[%emt 0:02:56]} 17. Qa4 {[%emt 0:03:18]} Rad8 {[%emt 0:04:24]} 18. Ba5 {[%emt 0:02:41]} Qa6 {[%emt 0:16:29]} 19. Qb3 {[%emt 0:02:11]} Bd6 {[%emt 0:05:09]} 20. Bxc7 {[%emt 0:00:46]} Bxc7 {[%emt 0:00:02]} 21. d6+ {[%emt 0:00:07]} Kh8 {[%emt 0:00:01]} 22. dxc7 Rc8 23. Rac1 {[%emt 0:01:01]} exd4 {[%emt 0:00:46]} 24. Bxe4 {[%emt 0:00:40]} b6 {[%emt 0:00:07]} 25. Qe6 {[%emt 0:02:29]} Nf6 {[%emt 0:01:27]} 26. Bf5 {[%emt 0:00:48]} Qa5 {[%emt 0:02:34]} 27. Bh3 {[%emt 0:04:47]} d3 {[%emt 0:02:44]} 28. Qd6 {[%emt 0:00:36]} d2 {[%emt 0:00:07]} 29. Bxc8 {[%emt 0:00:21]} 1-0

[Event "Budapest Spring Festival 2019"]
[Site "Budapest"]
[Date "2019.04.11"]
[Round "3.39"]
[White "Krstulovic, Alex"]
[Black "Suta, Andraz"]
[Result "1-0"]
[ECO "D37"]
[WhiteElo "2345"]
[BlackElo "2205"]
[Annotator "NA"]
[PlyCount "89"]
[EventDate "2019.04.09"]
[EventType "swiss"]
[EventCountry "HUN"]
[SourceTitle "playchess.com"]
[Source "ChessBase"]
[SourceQuality "1"]
[TimeControl "40/5400+30:1800+30"]

1. d4 {[%emt 0:00:31]} Nf6 {[%emt 0:00:21]} 2. c4 {[%emt 0:01:01]} e6 {[%emt 0:00:18]} 3. Nf3 {[%emt 0:00:06]} d5 {[%emt 0:00:08]} 4. Nc3 {[%emt 0:00:06]} Be7 {[%emt 0:00:19]} 5. Bf4 {[%emt 0:00:08]} O-O {[%emt 0:00:36]} 6. e3 {[%emt 0:00:05]} Nbd7 {[%emt 0:00:37]} 7. c5 {[%emt 0:05:20]} c6 {[%emt 0:01:28]} 8. Bd3 {[%emt 0:02:38]} b6 {[%emt 0:01:08]} 9. b4 {[%emt 0:00:09]} a5 {[%emt 0:00:06]} 10. a3 {[%emt 0:00:09]} Ba6 {[%emt 0:01:54]} 11. Bxa6 {[%emt 0:00:55]} Rxa6 {[%emt 0:00:10]} 12. O-O {[%emt 0:04:07]} Qc8 {[%emt 0:03:08]} 13. Qd3 {[%emt 0:08:12]} Ra8 {[%emt 0:01:06]} 14. Rfc1 {[%emt 0:08:45]} Qb7 {[%emt 0:04:20]} 15. Rab1 {[%emt 0:03:34]} axb4 {[%emt 0:01:22]} 16. axb4 {[%emt 0:00:08]} Rfc8 {[%emt 0:27:50]} 17. h3 {[%emt 0:07:50]} Bd8 {[%emt 0:06:50]} 18. e4 {[%emt 0:15:17]} dxe4 {[%emt 0:02:08]} 19. Nxe4 {[%emt 0:01:15]} Nxe4 {[%emt 0:00:13]} 20. Qxe4 {[%emt 0:00:08]} b5 {[%emt 0:01:49]} 21. Rb3 {[%emt 0:11:02]} Nf6 {[%emt 0:05:22]} 22. Qe2 {[%emt 0:01:05]} Nd5 {[%emt 0:07:45]} 23. Be5 {[%emt 0:02:27]} Bf6 {[%emt 0:09:22]} 24. Bxf6 {[%emt 0:09:13]} Nxf6 {[%emt 0:00:56]} 25. Ne5 {[%emt 0:00:14]} Nd7 {[%emt 0:03:48]} 26. Ng4 {[%emt 0:00:41]} Qc7 {[%emt 0:02:10]} 27. Qd2 {[%emt 0:05:20]} h5 {[%emt 0:05:18]} 28. Nh2 {[%emt 0:00:34]} Ra4 {[%emt 0:01:49]} 29. Qg5 {[%emt 0:03:56]} g6 {[%emt 0:00:23]} 30. Nf3 {[%emt 0:00:50]} Rca8 {[%emt 0:02:30]} 31. g4 {[%emt 0:03:02]} hxg4 {[%emt 0:00:31]} 32. hxg4 {[%emt 0:00:14]} Kg7 {[%emt 0:04:41]} 33. Rd1 {[%emt 0:06:15]} Ra1 {[%emt 0:00:51]} 34. Rxa1 {[%emt 0:00:29]} Rxa1+ {[%emt 0:00:01]} 35. Kg2 {[%emt 0:00:01]} Rd1 {[%emt 0:03:20]} 36. Nd2 {[%emt 0:01:25]} Qb8 {[%emt 0:00:55]} 37. Rh3 {[%emt 0:00:29]} Qa7 {[%emt 0:02:14]} 38. Qh6+ {[%emt 0:00:40]} Kf6 {[%emt 0:00:02]} 39. Qh4+ {[%emt 0:00:07]} g5 {[%emt 0:00:32]} 40. Ne4+ {[%emt 0:00:00]} Ke7 {[%emt 0:00:00]} 41. Qxg5+ {[%emt 0:00:20]} f6 {[%emt 0:00:37]} 42. Qg7+ {[%emt 0:00:36]} Kd8 {[%emt 0:00:09]} 43. Rh8+ {[%emt 0:00:23]} Kc7 {[%emt 0:00:05]} 44. Nxf6 {[%emt 0:00:09]} Rxd4 {[%emt 0:00:12]} 45. Ne8+ {[%emt 0:00:14]} 1-0

[Event "Budapest Spring Festival 2019"]
[Site "Budapest"]
[Date "2019.04.11"]
[Round "3.40"]
[White "Kun, Gabor"]
[Black "Prraneeth, Vuppala"]
[Result "0-1"]
[ECO "B22"]
[WhiteElo "2335"]
[BlackElo "2177"]
[Annotator "NA"]
[PlyCount "80"]
[EventDate "2019.04.09"]
[EventType "swiss"]
[EventCountry "HUN"]
[SourceTitle "playchess.com"]
[Source "ChessBase"]
[SourceQuality "1"]
[TimeControl "40/5400+30:1800+30"]

1. e4 {[%emt 0:00:22]} c5 {[%emt 0:00:44]} 2. c3 {[%emt 0:00:12]} Nf6 {[%emt 0:00:13]} 3. e5 {[%emt 0:00:04]} Nd5 {[%emt 0:00:06]} 4. d4 {[%emt 0:00:10]} cxd4 {[%emt 0:00:21]} 5. Nf3 {[%emt 0:00:06]} e6 {[%emt 0:00:14]} 6. cxd4 {[%emt 0:00:05]} d6 {[%emt 0:00:06]} 7. Bc4 {[%emt 0:00:21]} Nc6 {[%emt 0:00:18]} 8. O-O {[%emt 0:00:13]} Be7 {[%emt 0:00:26]} 9. Qe2 {[%emt 0:00:32]} O-O {[%emt 0:00:11]} 10. Bd2 {[%emt 0:00:25]} Qb6 {[%emt 0:02:51]} 11. exd6 {[%emt 0:01:29]} Bxd6 {[%emt 0:01:48]} 12. Be3 {[%emt 0:00:21]} Bd7 {[%emt 0:12:30]} 13. Nc3 {[%emt 0:01:16]} Nce7 {[%emt 0:00:48]} 14. Ne4 {[%emt 0:08:07]} Rac8 {[%emt 0:11:04]} 15. Nxd6 {[%emt 0:03:47]} Qxd6 {[%emt 0:00:09]} 16. Ne5 {[%emt 0:03:46]} Be8 {[%emt 0:11:41]} 17. Bb3 {[%emt 0:15:41]} f6 {[%emt 0:11:56]} 18. Nf3 {[%emt 0:03:35]} Bh5 {[%emt 0:06:34]} 19. Rfe1 {[%emt 0:07:46]} Nf5 {[%emt 0:05:56]} 20. h3 {[%emt 0:07:32]} Ndxe3 {[%emt 0:18:08]} 21. fxe3 {[%emt 0:18:01]} Ng3 {[%emt 0:05:48]} 22. Qd3 {[%emt 0:06:08]} Bxf3 {[%emt 0:01:14]} 23. gxf3 {[%emt 0:00:07]} Kh8 {[%emt 0:01:32]} 24. Rac1 {[%emt 0:01:38]} e5 {[%emt 0:01:27]} 25. Rxc8 {[%emt 0:10:07]} Rxc8 {[%emt 0:00:04]} 26. Bc2 {[%emt 0:00:26]} f5 {[%emt 0:03:21]} 27. dxe5 {[%emt 0:01:35]} Qxe5 {[%emt 0:00:05]} 28. Qd7 {[%emt 0:00:31]} Rf8 {[%emt 0:00:16]} 29. Qd4 {[%emt 0:01:37]} Qa5 {[%emt 0:01:45]} 30. b4 {[%emt 0:04:51]} Qc7 {[%emt 0:01:24]} 31. Bb3 {[%emt 0:00:30]} Nh5 {[%emt 0:00:57]} 32. f4 {[%emt 0:00:26]} Qe7 {[%emt 0:00:34]} 33. Qc5 {[%emt 0:00:27]} Qf6 {[%emt 0:00:05]} 34. Kh2 {[%emt 0:02:23]} b6 {[%emt 0:00:14]} 35. Qd4 {[%emt 0:00:36]} Qh4 {[%emt 0:01:04]} 36. Rg1 {[%emt 0:00:19]} Rd8 {[%emt 0:00:09]} 37. Qb2 {[%emt 0:00:27]} Nf6 {[%emt 0:01:27]} 38. Rg3 {[%emt 0:01:58]} Nh5 {[%emt 0:00:50]} 39. Rg2 {[%emt 0:00:44]} Nf6 40. Qc2 {[%emt 0:00:00]} Ng4+ {[%emt 0:00:00]} 0-1

[Event "Budapest Spring Festival 2019"]
[Site "Budapest"]
[Date "2019.04.12"]
[Round "4.1"]
[White "Onischuk, Vladimir"]
[Black "Gopal G.N."]
[Result "1/2-1/2"]
[ECO "B20"]
[WhiteElo "2627"]
[BlackElo "2589"]
[Annotator "RC"]
[PlyCount "105"]
[EventDate "2019.04.09"]
[EventType "swiss"]
[EventCountry "HUN"]
[SourceTitle "playchess.com"]
[Source "ChessBase"]
[SourceQuality "1"]
[TimeControl "40/5400+30:1800+30"]

1. e4 {[%emt 0:00:04]} c5 {[%emt 0:00:04]} 2. Ne2 {[%emt 0:00:09]} Nf6 3. Nbc3 {[%emt 0:00:23]} d6 {[%emt 0:00:49]} 4. g3 {[%emt 0:00:49]} g6 {[%emt 0:02:01]} 5. Bg2 {[%emt 0:00:44]} Nc6 {[%emt 0:00:28]} 6. d4 {[%emt 0:00:53]} cxd4 {[%emt 0:00:09]} 7. Nxd4 {[%emt 0:00:03]} Nxd4 {[%emt 0:03:06]} 8. Qxd4 {[%emt 0:00:05]} Bg7 {[%emt 0:00:06]} 9. e5 {[%emt 0:00:29]} Nd7 {[%emt 0:00:47]} 10. Qa4 {[%emt 0:00:05]} O-O {[%emt 0:00:36]} 11. exd6 {[%emt 0:00:07]} Nb6 {[%emt 0:00:16]} 12. Qf4 {[%emt 0:00:07]} Qxd6 {[%emt 0:00:33]} 13. O-O {[%emt 0:00:06]} Be6 {[%emt 0:03:50]} 14. a4 {[%emt 0:04:01]} Bxc3 {[%emt 0:06:56]} 15. bxc3 {[%emt 0:00:36]} Bd5 {[%emt 0:00:12]} 16. Qxd6 {[%emt 0:00:54]} exd6 {[%emt 0:00:04]} 17. Re1 {[%emt 0:00:41]} Rfe8 {[%emt 0:10:07]} 18. Rxe8+ {[%emt 0:02:35]} Rxe8 {[%emt 0:00:02]} 19. Be3 {[%emt 0:00:13]} Bxg2 {[%emt 0:01:22]} 20. Kxg2 {[%emt 0:00:04]} Nc4 {[%emt 0:06:21]} 21. Bxa7 {[%emt 0:00:53]} Ra8 {[%emt 0:00:52]} 22. Bd4 {[%emt 0:00:06]} b5 23. a5 {[%emt 0:00:04]} Rxa5 {[%emt 0:00:35]} 24. Re1 {[%emt 0:00:07]} Kf8 {[%emt 0:07:22]} 25. g4 {[%emt 0:14:26]} Ra2 {[%emt 0:12:06]} 26. Re2 {[%emt 0:09:15]} Ne5 {[%emt 0:01:16]} 27. Kg3 {[%emt 0:03:30]} f6 {[%emt 0:01:06]} 28. f4 {[%emt 0:06:55]} Nd7 {[%emt 0:00:06]} 29. Kf3 {[%emt 0:07:18]} d5 {[%emt 0:03:18]} 30. h4 {[%emt 0:19:13]} Kf7 {[%emt 0:02:38]} 31. h5 {[%emt 0:07:13]} Ra1 {[%emt 0:12:42]} 32. hxg6+ {[%emt 0:04:10]} hxg6 {[%emt 0:00:05]} 33. Rd2 {[%emt 0:00:30]} Rb1 {[%emt 0:04:20]} 34. Be3 {[%emt 0:01:10]} Ke6 {[%emt 0:00:37]} 35. Rh2 {[%emt 0:00:53]} b4 {[%emt 0:02:57]} 36. cxb4 {[%emt 0:04:39]} Rxb4 {[%emt 0:00:04]} 37. c3 {[%emt 0:00:06]} Rc4 {[%emt 0:05:44]} 38. Bd4 {[%emt 0:00:08]} Nb8 {[%emt 0:04:16]} 39. Rh6 {[%emt 0:01:50]} Nc6 {[%emt 0:01:25]} 40. Rxg6 {[%emt 0:00:00]} Nxd4+ {[%emt 0:00:00]} 41. cxd4 {[%emt 0:00:41]} Kf7 {[%emt 0:01:01]} 42. Rh6 {[%emt 0:00:05]} Kg7 {[%emt 0:08:26]} 43. Rh1 {[%emt 0:00:25]} Rxd4 {[%emt 0:00:03]} 44. Kg3 {[%emt 0:00:04]} Re4 {[%emt 0:12:31]} 45. Ra1 {[%emt 0:03:53]} Re7 {[%emt 0:01:19]} 46. Rd1 {[%emt 0:00:27]} Rd7 {[%emt 0:00:32]} 47. Rd4 {[%emt 0:00:04]} Kf7 {[%emt 0:00:26]} 48. f5 {[%emt 0:00:28]} Rd8 {[%emt 0:04:00]} 49. Kf4 {[%emt 0:00:40]} Ke7 {[%emt 0:00:42]} 50. Rd2 {[%emt 0:06:13]} Kf7 {[%emt 0:00:13]} 51. Ra2 {[%emt 0:01:06]} d4 {[%emt 0:02:04]} 52. Rd2 {[%emt 0:02:23]} d3 {[%emt 0:00:39]} 53. Ke4 {[%emt 0:00:18]} 1/2-1/2